fUST/lending_fUST_20260118
["ID","MTS","AMOUNT","RATE_DAILY","PERIOD"]
[402453975,1768680643734,-500.0,0.00016438,3]
[402453977,1768680643743,-1353.4,0.00016438,3]
[402453979,1768680643752,-500.0,0.00016438,3]
[402453981,1768680643761,-238.33114,0.00016438,3]
[402453983,1768680643770,-1059.76,0.00016438,3]
[402453985,1768680643779,-1200.0,0.00016438,2]
[402453987,1768680643789,-500.0,0.00016438,3]
[402453989,1768680643799,-500.0,0.00016438,3]
[402453991,1768680643808,-500.0,0.00016438,3]
[402453993,1768680643818,-500.0,0.00016438,3]
[402453995,1768680643831,-500.0,0.00016438,3]
[402453997,1768680643840,-500.0,0.00016438,3]
[402453998,1768680643850,-500.0,0.00016438,3]
[402454000,1768680643859,-500.0,0.00016438,3]
[402454002,1768680643871,-538.97966179,0.00016438,3]
[402454004,1768680643880,-500.0,0.00016438,3]
[402454006,1768680643890,-527.76,0.00016438,3]
[402454008,1768680643901,-500.0,0.00016438,3]
[402454010,1768680643910,-500.0,0.00016438,3]
[402454012,1768680643919,-580.81,0.00016438,3]
[402454014,1768680643929,-500.0,0.00016438,3]
[402454016,1768680643939,-847.23,0.00016438,3]
[402454018,1768680643948,-500.0,0.00016438,3]
[402454020,1768680643957,-500.0,0.00016438,3]
[402454022,1768680643968,-500.0,0.00016438,3]
[402454024,1768680643978,-668.91,0.00016438,3]
[402454026,1768680643987,-500.0,0.00016438,3]
[402454028,1768680643997,-600.65,0.00016438,3]
[402454030,1768680644006,-500.0,0.00016438,3]
[402454032,1768680644016,-500.0,0.00016438,3]
[402454034,1768680644026,-500.0,0.00016438,3]
[402454036,1768680644036,-500.0,0.00016438,3]
[402454038,1768680644045,-500.0,0.00016438,3]
[402454040,1768680644055,-481.66318474,0.00016438,3]
[402454042,1768680644064,-500.0,0.00016438,3]
[402454044,1768680644073,-1055.28,0.00016438,3]
[402454046,1768680644083,-637.05,0.00016438,3]
[402454048,1768680644093,-500.0,0.00016438,3]
[402454050,1768680644102,-500.0,0.00016438,3]
[402454052,1768680644111,-500.0,0.00016438,3]
[402454054,1768680644120,-500.0,0.00016438,3]
[402454056,1768680644129,-500.0,0.00016438,3]
[402454057,1768680644138,-1216.57,0.00016438,3]
[402454059,1768680644147,-500.0,0.00016438,3]
[402454061,1768680644157,-517.21,0.00016438,3]
[402454063,1768680644166,-636.97,0.00016438,3]
[402454065,1768680644175,-500.0,0.00016438,3]
[402454067,1768680644185,-500.0,0.00016438,3]
[402454069,1768680644194,-500.0,0.00016438,3]
[402454071,1768680644203,-565.35,0.00016438,3]
[402454073,1768680644213,-500.0,0.00016438,3]
[402454075,1768680644223,-500.0,0.00016438,3]
[402454077,1768680644233,-500.0,0.00016438,3]
[402454079,1768680644242,-614.66,0.00016438,3]
[402454081,1768680644252,-500.0,0.00016438,3]
[402454083,1768680644261,-500.0,0.00016438,3]
[402454085,1768680644271,-500.0,0.00016438,3]
[402454087,1768680644281,-500.0,0.00016438,3]
[402454089,1768680644290,-500.0,0.00016438,3]
[402454091,1768680644299,-500.0,0.00016438,3]
[402454093,1768680644309,-500.0,0.00016438,3]
[402454095,1768680644318,-500.0,0.00016438,3]
[402454097,1768680644327,-826.46,0.00016438,3]
[402454099,1768680644336,-500.0,0.00016438,3]
[402454101,1768680644346,-500.0,0.00016438,3]
[402454103,1768680644355,-500.0,0.00016438,3]
[402454105,1768680644364,-5038.2840192,0.00016438,2]
[402454107,1768680644373,-500.0,0.00016438,3]
[402454108,1768680644383,-500.0,0.00016438,3]
[402454110,1768680644393,-500.0,0.00016438,3]
[402454112,1768680644402,-500.0,0.00016438,3]
[402454114,1768680644411,-880.45,0.00016438,3]
[402454116,1768680644420,-735.0,0.00016438,3]
[402454118,1768680644430,-500.0,0.00016438,3]
[402454120,1768680644440,-1034.05,0.00016438,3]
[402454122,1768680644450,-500.0,0.00016438,3]
[402454124,1768680644459,-500.0,0.00016438,3]
[402454126,1768680644468,-500.0,0.00016438,3]
[402454128,1768680644477,-500.0,0.00016438,3]
[402454130,1768680644487,-500.0,0.00016438,3]
[402454132,1768680644498,-500.0,0.00016438,3]
[402454134,1768680644507,-535.81,0.00016438,3]
[402454136,1768680644517,-1027.04,0.00016438,3]
[402454138,1768680644526,-544.8,0.00016438,3]
[402454140,1768680644535,-500.0,0.00016438,3]
[402454142,1768680644544,-500.0,0.00016438,3]
[402454144,1768680644553,-1017.02,0.00016438,3]
[402454146,1768680644562,-500.0,0.00016438,3]
[402454148,1768680644571,-500.0,0.00016438,3]
[402454150,1768680644580,-500.0,0.00016438,3]
[402454151,1768680644589,-500.0,0.00016438,3]
[402454153,1768680644599,-1987.01,0.00016438,3]
[402454155,1768680644609,-500.0,0.00016438,3]
[402454157,1768680644618,-500.0,0.00016438,3]
[402454159,1768680644627,-793.73,0.00016438,3]
[402454161,1768680644637,-500.0,0.00016438,3]
[402454163,1768680644646,-500.0,0.00016438,3]
[402454165,1768680644655,-500.0,0.00016438,3]
[402454167,1768680644664,-1079.32,0.00016438,3]
[402454169,1768680644674,-500.0,0.00016438,3]
[402454171,1768680644683,-500.0,0.00016438,3]
[402454173,1768680644692,-583.68,0.00016438,3]
[402454175,1768680644702,-500.0,0.00016438,3]
[402454177,1768680644712,-500.0,0.00016438,3]
[402454179,1768680644721,-500.0,0.00016438,3]
[402454181,1768680644730,-500.0,0.00016438,3]
[402454183,1768680644739,-500.0,0.00016438,3]
[402454185,1768680644749,-523.99827377,0.00016438,3]
[402454187,1768680644758,-500.0,0.00016438,3]
[402454189,1768680644767,-895.32,0.00016438,3]
[402454191,1768680644776,-770.07,0.00016438,3]
[402454193,1768680644785,-500.0,0.00016438,3]
[402454195,1768680644795,-500.0,0.00016438,3]
[402454197,1768680644804,-500.0,0.00016438,3]
[402454198,1768680644814,-667.44,0.00016438,3]
[402454200,1768680644825,-500.0,0.00016438,3]
[402454202,1768680644834,-500.0,0.00016438,3]
[402454204,1768680644844,-500.0,0.00016438,3]
[402454206,1768680644854,-500.0,0.00016438,3]
[402454208,1768680644863,-500.0,0.00016438,3]
[402454210,1768680644874,-500.0,0.00016438,3]
[402454212,1768680644883,-500.0,0.00016438,3]
[402454214,1768680644893,-760.25,0.00016438,3]
[402454216,1768680644904,-500.0,0.00016438,3]
[402454218,1768680644913,-532.59,0.00016438,3]
[402454220,1768680644923,-500.0,0.00016438,3]
[402454222,1768680644932,-500.0,0.00016438,3]
[402454224,1768680644942,-500.0,0.00016438,3]
[402454225,1768680644952,-500.0,0.00016438,3]
[402454227,1768680644962,-466.05554011,0.00016438,3]
[402454229,1768680644972,-500.0,0.00016438,3]
[402454231,1768680644980,-555.66,0.00016438,3]
[402454233,1768680644990,-500.0,0.00016438,3]
[402454235,1768680644999,-500.0,0.00016438,3]
[402454237,1768680645009,-500.0,0.00016438,3]
[402454239,1768680645017,-500.0,0.00016438,3]
[402454241,1768680645026,-500.0,0.00016438,3]
[402454243,1768680645036,-500.0,0.00016438,3]
[402454245,1768680645045,-778.89,0.00016438,3]
[402454247,1768680645055,-509.24,0.00016438,3]
[402454249,1768680645064,-500.0,0.00016438,3]
[402454251,1768680645073,-500.0,0.00016438,3]
[402454253,1768680645082,-1420.19,0.00016438,3]
[402454255,1768680645092,-604.25264706,0.00016438,3]
[402454256,1768680645101,-534.25045514,0.00016438,3]
[402454258,1768680645110,-500.0,0.00016438,3]
[402454260,1768680645119,-951.27,0.00016438,3]
[402454262,1768680645128,-669.06,0.00016438,3]
[402454264,1768680645137,-10906.95,0.00016438,3]
[402454266,1768680645147,-500.0,0.00016438,3]
[402454268,1768680645156,-764.59,0.00016438,3]
[402454270,1768680645166,-500.0,0.00016438,3]
[402454272,1768680645175,-500.0,0.00016438,3]
[402454274,1768680645186,-500.0,0.00016438,3]
[402454276,1768680645195,-500.0,0.00016438,3]
[402454278,1768680645204,-1161.1,0.00016438,3]
[402454280,1768680645214,-500.0,0.00016438,3]
[402454282,1768680645223,-632.14,0.00016438,3]
[402454284,1768680645233,-500.0,0.00016438,3]
[402454286,1768680645243,-500.0,0.00016438,3]
[402454287,1768680645252,-500.0,0.00016438,3]
[402454289,1768680645261,-500.0,0.00016438,3]
[402454291,1768680645271,-500.0,0.00016438,3]
[402454293,1768680645280,-1332.15,0.00016438,3]
[402454295,1768680645289,-883.07,0.00016438,3]
[402454297,1768680645299,-694.52,0.00016438,3]
[402454299,1768680645308,-832.57,0.00016438,3]
[402454301,1768680645317,-500.0,0.00016438,3]
[402454303,1768680645326,-500.0,0.00016438,3]
[402454305,1768680645336,-500.0,0.00016438,3]
[402454306,1768680645346,-1045.91,0.00016438,3]
[402454308,1768680645355,-500.0,0.00016438,3]
[402454310,1768680645364,-726.59,0.00016438,3]
[402454312,1768680645373,-500.0,0.00016438,3]
[402454314,1768680645382,-606.2,0.00016438,3]
[402454316,1768680645391,-500.0,0.00016438,3]
[402454318,1768680645400,-500.0,0.00016438,3]
[402454320,1768680645409,-500.0,0.00016438,3]
[402454322,1768680645420,-500.0,0.00016438,3]
[402454324,1768680645429,-500.0,0.00016438,3]
[402454326,1768680645438,-500.0,0.00016438,3]
[402454328,1768680645449,-500.0,0.00016438,3]
[402454330,1768680645458,-1061.57,0.00016438,3]
[402454332,1768680645467,-500.0,0.00016438,3]
[402454334,1768680645477,-500.0,0.00016438,3]
[402454335,1768680645486,-500.0,0.00016438,3]
[402454337,1768680645495,-500.0,0.00016438,3]
[402454339,1768680645505,-500.0,0.00016438,3]
[402454341,1768680645515,-500.0,0.00016438,3]
[402454343,1768680645524,-500.0,0.00016438,3]
[402454345,1768680645534,-500.0,0.00016438,3]
[402454347,1768680645545,-500.0,0.00016438,3]
[402454349,1768680645554,-500.0,0.00016438,3]
[402454351,1768680645563,-500.0,0.00016438,3]
[402454352,1768680645572,-1256.22,0.00016438,3]
[402454353,1768680645581,-540.01468021,0.00016438,3]
[402454354,1768680645590,-500.0,0.00016438,3]
[402454355,1768680645599,-500.0,0.00016438,3]
[402454356,1768680645608,-500.0,0.00016438,3]
[402454357,1768680645617,-154.82234284,0.00016438,3]
[402454358,1768680645626,-4064.99301973,0.00016438,2]
[402454359,1768680645635,-500.0,0.00016438,3]
[402454360,1768680645644,-500.0,0.00016438,3]
[402454361,1768680645653,-500.0,0.00016438,3]
[402454362,1768680645663,-500.0,0.00016438,3]
[402454363,1768680645672,-500.0,0.00016438,3]
[402454364,1768680645681,-1057.38,0.00016438,3]
[402454365,1768680645690,-500.0,0.00016438,3]
[402454366,1768680645699,-500.0,0.00016438,3]
[402454367,1768680645708,-500.0,0.00016438,3]
[402454368,1768680645717,-500.0,0.00016438,3]
[402454369,1768680645726,-500.0,0.00016438,3]
[402454371,1768680645734,-500.0,0.00016438,3]
[402454373,1768680645744,-500.0,0.00016438,3]
[402454375,1768680645753,-500.0,0.00016438,3]
[402454377,1768680645762,-1554.16,0.00016438,3]
[402454379,1768680645772,-500.0,0.00016438,3]
[402454381,1768680645781,-500.0,0.00016438,3]
[402454383,1768680645790,-500.0,0.00016438,3]
[402454385,1768680645800,-505.39,0.00016438,3]
[402454387,1768680645809,-500.0,0.00016438,3]
[402454389,1768680645819,-909.62,0.00016438,3]
[402454391,1768680645833,-500.0,0.00016438,3]
[402454393,1768680645843,-500.0,0.00016438,3]
[402454395,1768680645852,-500.0,0.00016438,3]
[402454397,1768680645861,-701.17,0.00016438,3]
[402454399,1768680645872,-500.0,0.00016438,3]
[402454401,1768680645881,-172.631544,0.00016438,3]
[402454403,1768680645891,-999.66,0.00016438,3]
[402454405,1768680645902,-500.0,0.00016438,3]
[402454407,1768680645911,-500.0,0.00016438,3]
[402454409,1768680645921,-500.0,0.00016438,3]
[402454411,1768680645931,-500.0,0.00016438,3]
[402454413,1768680645940,-500.0,0.00016438,3]
[402454415,1768680645950,-158.856128,0.00016438,3]
[402454417,1768680645960,-1052.54,0.00016438,3]
[402454420,1768680645972,-776.94,0.00016438,3]
[402454422,1768680645981,-348.9788039,0.00016438,3]
[402454424,1768680645991,-500.0,0.00016438,3]
[402454425,1768680646000,-965.24,0.00016438,3]
[402454428,1768680646009,-500.0,0.00016438,3]
[402454431,1768680646018,-1038.17,0.00016438,3]
[402454433,1768680646026,-1719.73,0.00016438,3]
[402454436,1768680646036,-1735.2,0.00016438,3]
[402454438,1768680646045,-500.0,0.00016438,3]
[402454440,1768680646055,-500.0,0.00016438,3]
[402454442,1768680646064,-500.0,0.00016438,3]
[402454444,1768680646074,-500.0,0.00016438,3]
[402454446,1768680646083,-500.0,0.00016438,3]
[402454448,1768680646092,-500.0,0.00016438,3]
[402454450,1768680646102,-500.0,0.00016438,3]
[402454452,1768680646111,-500.0,0.00016438,3]
[402454454,1768680646121,-809.67,0.00016438,3]
[402454456,1768680646130,-500.0,0.00016438,3]
[402454458,1768680646139,-1140.32,0.00016438,3]
[402454460,1768680646149,-500.0,0.00016438,3]
[402454462,1768680646159,-500.0,0.00016438,3]
[402454464,1768680646168,-500.0,0.00016438,3]
[402454466,1768680646178,-500.0,0.00016438,3]
[402454468,1768680646187,-500.0,0.00016438,3]
[402454470,1768680646196,-500.0,0.00016438,3]
[402454472,1768680646205,-643.79,0.00016438,3]
[402454474,1768680646215,-500.0,0.00016438,3]
[402454476,1768680646225,-500.0,0.00016438,3]
[402454478,1768680646235,-500.0,0.00016438,3]
[402454480,1768680646244,-500.0,0.00016438,3]
[402454482,1768680646253,-500.0,0.00016438,3]
[402454484,1768680646262,-577.48511526,0.00016438,3]
[402454486,1768680646272,-500.0,0.00016438,3]
[402454488,1768680646281,-1273.89,0.00016438,3]
[402454490,1768680646290,-500.0,0.00016438,3]
[402454492,1768680646299,-500.0,0.00016438,3]
[402454494,1768680646309,-500.0,0.00016438,3]
[402454495,1768680646318,-631.51,0.00016438,3]
[402454497,1768680646327,-500.0,0.00016438,3]
[402454500,1768680646337,-628.87,0.00016438,3]
[402454501,1768680646347,-1510.19,0.00016438,3]
[402454503,1768680646356,-500.0,0.00016438,3]
[402454505,1768680646366,-500.0,0.00016438,3]
[402454507,1768680646375,-500.0,0.00016438,3]
[402454509,1768680646384,-878.72,0.00016438,3]
[402454511,1768680646394,-500.0,0.00016438,3]
[402454513,1768680646404,-500.0,0.00016438,3]
[402454515,1768680646414,-500.0,0.00016438,3]
[402454517,1768680646424,-500.0,0.00016438,3]
[402454519,1768680646433,-903.91,0.00016438,3]
[402454521,1768680646442,-500.0,0.00016438,3]
[402454523,1768680646451,-500.0,0.00016438,3]
[402454525,1768680646461,-526.3812206,0.00016438,3]
[402454527,1768680646470,-500.0,0.00016438,3]
[402454529,1768680646479,-500.0,0.00016438,3]
[402454531,1768680646489,-500.0,0.00016438,3]
[402454532,1768680646499,-500.0,0.00016438,3]
[402454534,1768680646508,-500.0,0.00016438,3]
[402454538,1768680646520,-500.0,0.00016438,3]
[402454540,1768680646531,-500.0,0.00016438,3]
[402454542,1768680646540,-1425.71,0.00016438,3]
[402454544,1768680646549,-500.0,0.00016438,3]
[402454545,1768680646559,-544.53494198,0.00016438,3]
[402454547,1768680646568,-500.0,0.00016438,3]
[402454549,1768680646578,-500.0,0.00016438,3]
[402454551,1768680646588,-553.19,0.00016438,3]
[402454553,1768680646598,-500.0,0.00016438,3]
[402454556,1768680646607,-500.0,0.00016438,3]
[402454558,1768680646617,-500.0,0.00016438,3]
[402454560,1768680646627,-500.0,0.00016438,3]
[402454562,1768680646636,-500.0,0.00016438,3]
[402454563,1768680646645,-500.0,0.00016438,3]
[402454565,1768680646654,-500.0,0.00016438,3]
[402454567,1768680646663,-500.0,0.00016438,3]
[402454569,1768680646673,-500.0,0.00016438,3]
[402454571,1768680646682,-500.0,0.00016438,3]
[402454573,1768680646691,-500.0,0.00016438,3]
[402454575,1768680646700,-500.0,0.00016438,3]
[402454577,1768680646709,-500.0,0.00016438,3]
[402454579,1768680646719,-441.88906637,0.00016438,3]
[402454581,1768680646728,-500.0,0.00016438,3]
[402454582,1768680646737,-500.0,0.00016438,3]
[402454584,1768680646746,-500.0,0.00016438,3]
[402454586,1768680646755,-500.0,0.00016438,3]
[402454588,1768680646764,-2083.26,0.00016438,3]
[402454590,1768680646774,-500.0,0.00016438,3]
[402454592,1768680646783,-543.61913102,0.00016438,3]
[402454594,1768680646792,-500.0,0.00016438,3]
[402454596,1768680646802,-500.0,0.00016438,3]
[402454598,1768680646811,-500.0,0.00016438,3]
[402454600,1768680646820,-500.0,0.00016438,3]
[402454602,1768680646833,-500.0,0.00016438,3]
[402454604,1768680646842,-1370.45,0.00016438,3]
[402454606,1768680646851,-500.0,0.00016438,3]
[402454608,1768680646861,-500.0,0.00016438,3]
[402454610,1768680646872,-658.95,0.00016438,3]
[402454612,1768680646882,-500.0,0.00016438,3]
[402454614,1768680646891,-500.0,0.00016438,3]
[402454616,1768680646902,-500.0,0.00016438,3]
[402454618,1768680646912,-500.0,0.00016438,3]
[402454620,1768680646921,-500.0,0.00016438,3]
[402454642,1768680647128,-609.79,0.00016438,3]
[402454644,1768680647139,-500.0,0.00016438,3]
[402454646,1768680647148,-1222.64,0.00016438,3]
[402454648,1768680647157,-183.73779352,0.00016438,3]
[402454650,1768680647167,-1860.69,0.00016438,3]
[402454652,1768680647177,-500.0,0.00016438,3]
[402454654,1768680647186,-500.0,0.00016438,3]
[402454656,1768680647196,-500.0,0.00016438,3]
[402454658,1768680647206,-948.78,0.00016438,3]
[402454660,1768680647216,-500.0,0.00016438,3]
[402454662,1768680647225,-1065.95,0.00016438,3]
[402454664,1768680647235,-500.0,0.00016438,3]
[402454666,1768680647244,-500.0,0.00016438,3]
[402454668,1768680647254,-907.15,0.00016438,3]
[402454670,1768680647263,-500.0,0.00016438,3]
[402454672,1768680647273,-733.76,0.00016438,3]
[402454674,1768680647282,-500.0,0.00016438,3]
[402454676,1768680647292,-531.61,0.00016438,3]
[402454678,1768680647301,-500.0,0.00016438,3]
[402454680,1768680647310,-500.0,0.00016438,3]
[402454682,1768680647319,-500.0,0.00016438,3]
[402454684,1768680647330,-500.0,0.00016438,3]
[402454686,1768680647339,-500.0,0.00016438,3]
[402454688,1768680647348,-775.8,0.00016438,3]
[402454690,1768680647357,-469.18172049,0.00016438,3]
[402454692,1768680647366,-1570.13,0.00016438,3]
[402454694,1768680647375,-947.9,0.00016438,3]
[402454695,1768680647384,-623.61,0.00016438,3]
[402454697,1768680647394,-500.0,0.00016438,3]
[402454699,1768680647404,-500.0,0.00016438,3]
[402454701,1768680647413,-500.0,0.00016438,3]
[402454703,1768680647422,-500.0,0.00016438,3]
[402454705,1768680647431,-500.0,0.00016438,3]
[402454707,1768680647440,-500.0,0.00016438,3]
[402454709,1768680647450,-500.0,0.00016438,3]
[402454711,1768680647459,-500.0,0.00016438,3]
[402454713,1768680647469,-500.0,0.00016438,3]
[402454715,1768680647479,-632.68,0.00016438,3]
[402454717,1768680647488,-500.0,0.00016438,3]
[402454719,1768680647497,-500.0,0.00016438,3]
[402454721,1768680647506,-545.8035631,0.00016438,3]
[402454723,1768680647516,-500.0,0.00016438,3]
[402454725,1768680647524,-1858.88,0.00016438,3]
[402454727,1768680647534,-500.0,0.00016438,3]
[402454729,1768680647546,-6357.57,0.00016438,3]
[402454731,1768680647555,-1319.32,0.00016438,3]
[402454733,1768680647565,-500.0,0.00016438,3]
[402454735,1768680647573,-897.51,0.00016438,3]
[402454737,1768680647582,-616.98850681,0.00016438,3]
[402454739,1768680647592,-601.78,0.00016438,3]
[402454741,1768680647601,-500.0,0.00016438,3]
[402454743,1768680647614,-500.0,0.00016438,3]
[402454745,1768680647624,-500.0,0.00016438,3]
[402454747,1768680647633,-500.0,0.00016438,3]
[402454749,1768680647642,-539.94,0.00016438,3]
[402454751,1768680647652,-500.0,0.00016438,3]
[402454753,1768680647664,-677.0,0.00016438,3]
[402454755,1768680647674,-1793.48,0.00016438,3]
[402454757,1768680647683,-1123.25,0.00016438,3]
[402454758,1768680647692,-500.0,0.00016438,3]
[402454760,1768680647702,-1081.46,0.00016438,3]
[402454763,1768680647711,-500.0,0.00016438,3]
[402454764,1768680647720,-500.0,0.00016438,3]
[402454766,1768680647729,-659.73,0.00016438,3]
[402454768,1768680647739,-500.0,0.00016438,3]
[402454770,1768680647749,-500.0,0.00016438,3]
[402454772,1768680647759,-606.30623582,0.00016438,3]
[402454774,1768680647768,-500.0,0.00016438,3]
[402454776,1768680647778,-1335.7,0.00016438,3]
[402454778,1768680647787,-597.06,0.00016438,3]
[402454780,1768680647796,-241.75904852,0.00016438,3]
[402454782,1768680647806,-558.42,0.00016438,3]
[402454784,1768680647815,-396.06284301,0.00016438,2]
[402454786,1768680647829,-500.0,0.00016438,3]
[402454788,1768680647838,-566.78,0.00016438,3]
[402454790,1768680647847,-500.0,0.00016438,3]
[402454792,1768680647857,-872.79,0.00016438,3]
[402454794,1768680647867,-500.0,0.00016438,3]
[402454796,1768680647876,-500.0,0.00016438,3]
[402454798,1768680647885,-688.44,0.00016438,3]
[402454800,1768680647895,-500.0,0.00016438,3]
[402454802,1768680647906,-500.0,0.00016438,3]
[402454804,1768680647916,-598.89865208,0.00016438,3]
[402454806,1768680647926,-500.0,0.00016438,3]
[402454808,1768680647935,-500.0,0.00016438,3]
[402454810,1768680647945,-500.0,0.00016438,3]
[402454812,1768680647954,-500.0,0.00016438,3]
[402454814,1768680647963,-500.0,0.00016438,3]
[402454816,1768680647972,-500.0,0.00016438,3]
[402454818,1768680647981,-500.0,0.00016438,3]
[402454820,1768680647991,-500.0,0.00016438,3]
[402454822,1768680648000,-500.0,0.00016438,3]
[402454824,1768680648009,-500.0,0.00016438,3]
[402454826,1768680648019,-500.0,0.00016438,3]
[402454828,1768680648028,-500.0,0.00016438,3]
[402454830,1768680648038,-500.0,0.00016438,3]
[402454832,1768680648048,-500.0,0.00016438,3]
[402454834,1768680648057,-523.41303574,0.00016438,3]
[402454836,1768680648067,-500.0,0.00016438,3]
[402454838,1768680648076,-500.0,0.00016438,3]
[402454840,1768680648085,-543.38,0.00016438,3]
[402454842,1768680648095,-500.0,0.00016438,3]
[402454844,1768680648104,-500.0,0.00016438,3]
[402454846,1768680648114,-500.0,0.00016438,3]
[402454848,1768680648123,-500.0,0.00016438,3]
[402454850,1768680648132,-500.0,0.00016438,3]
[402454852,1768680648142,-500.0,0.00016438,3]
[402454854,1768680648152,-500.0,0.00016438,3]
[402454856,1768680648161,-500.0,0.00016438,3]
[402454858,1768680648171,-500.0,0.00016438,3]
[402454860,1768680648180,-500.0,0.00016438,3]
[402454862,1768680648190,-500.0,0.00016438,3]
[402454864,1768680648199,-979.4,0.00016438,3]
[402454866,1768680648209,-2738.98,0.00016438,3]
[402454868,1768680648218,-500.0,0.00016438,3]
[402454870,1768680648228,-500.0,0.00016438,3]
[402454872,1768680648238,-500.0,0.00016438,3]
[402454874,1768680648247,-500.0,0.00016438,3]
[402454876,1768680648257,-500.0,0.00016438,3]
[402454878,1768680648266,-500.0,0.00016438,3]
[402454880,1768680648276,-500.0,0.00016438,3]
[402454882,1768680648286,-500.0,0.00016438,3]
[402454884,1768680648296,-500.0,0.00016438,3]
[402454886,1768680648312,-1020.99,0.00016438,3]
[402454888,1768680648321,-500.0,0.00016438,3]
[402454890,1768680648340,-500.0,0.00016438,3]
[402454892,1768680648354,-817.72,0.00016438,3]
[402454894,1768680648365,-500.0,0.00016438,3]
[402454896,1768680648382,-500.0,0.00016438,3]
[402454898,1768680648392,-606.48,0.00016438,3]
[402454900,1768680648402,-538.58,0.00016438,3]
[402454902,1768680648412,-500.0,0.00016438,3]
[402454903,1768680648421,-500.0,0.00016438,3]
[402454905,1768680648430,-500.0,0.00016438,3]
[402454907,1768680648440,-500.0,0.00016438,3]
[402454909,1768680648449,-500.0,0.00016438,3]
[402454911,1768680648460,-500.0,0.00016438,3]
[402454913,1768680648469,-500.0,0.00016438,3]
[402454915,1768680648478,-647.35,0.00016438,3]
[402454917,1768680648488,-500.0,0.00016438,3]
[402454919,1768680648498,-500.0,0.00016438,3]
[402454921,1768680648507,-1443.33,0.00016438,3]
[402454923,1768680648516,-1261.68,0.00016438,3]
[402454925,1768680648526,-500.0,0.00016438,3]
[402454927,1768680648536,-1087.65,0.00016438,3]
[402454929,1768680648545,-500.0,0.00016438,3]
[402454931,1768680648555,-500.0,0.00016438,3]
[402454933,1768680648566,-547.25,0.00016438,3]
[402454935,1768680648575,-309.96810054,0.00016438,3]
[402454937,1768680648585,-500.0,0.00016438,3]
[402454939,1768680648595,-1265.32,0.00016438,3]
[402454941,1768680648604,-362.08497691,0.00016438,3]
[402454943,1768680648613,-500.0,0.00016438,3]
[402454945,1768680648623,-1310.48,0.00016438,3]
[402454947,1768680648633,-1112.25,0.00016438,3]
[402454949,1768680648644,-500.0,0.00016438,3]
[402454950,1768680648663,-500.0,0.00016438,3]
[402454952,1768680648672,-2390.17,0.00016438,3]
[402454954,1768680648681,-500.0,0.00016438,3]
[402454956,1768680648690,-500.0,0.00016438,3]
[402454958,1768680648699,-500.0,0.00016438,3]
[402454960,1768680648709,-500.0,0.00016438,3]
[402454962,1768680648718,-2392.5,0.00016438,2]